[Event "*** SCC Grand Prix: Titled Tuesday Blitz"]
[Site "Chess.com"]
[Date "2020.07.14"]
[Round "4"]
[White "Kavyev_Ruslan"]
[Black "kassablanca"]
[Result "0-1"]
[WhiteElo "2450"]
[BlackElo "2632"]
[TimeControl "180+1"]
[EndTime "10:40:17 PDT"]
[Termination "kassablanca won by resignation"]

1. d4 {[%clk 0:03:00.9]} 1... d5 {[%clk 0:02:59.9]} 2. c4 {[%clk 0:02:59.2]}
2... e6 {[%clk 0:03:00.2]} 3. Nf3 {[%clk 0:02:59.1]} 3... a6 {[%clk 0:02:59.9]}
4. g3 {[%clk 0:02:59.2]} 4... dxc4 {[%clk 0:02:59.5]} 5. Bg2 {[%clk 0:02:59.8]}
5... Nc6 {[%clk 0:02:58]} 6. O-O {[%clk 0:02:58.9]} 6... Rb8 {[%clk 0:02:57.8]}
7. e3 {[%clk 0:02:57.5]} 7... b5 {[%clk 0:02:51.6]} 8. Qe2 {[%clk 0:02:57.7]}
8... Nf6 {[%clk 0:02:51.3]} 9. b3 {[%clk 0:02:57.7]} 9... cxb3 {[%clk
0:02:50.3]} 10. axb3 {[%clk 0:02:58.6]} 10... Bb7 {[%clk 0:02:44]} 11. Bd2
{[%clk 0:02:59]} 11... Be7 {[%clk 0:02:33.4]} 12. Rc1 {[%clk 0:02:57]} 12... O-O
{[%clk 0:02:30.3]} 13. Ne1 {[%clk 0:02:55.6]} 13... Nd5 {[%clk 0:01:54.3]} 14.
Nc3 {[%clk 0:02:53.4]} 14... Ncb4 {[%clk 0:01:36.4]} 15. Na2 {[%clk 0:02:45.7]}
15... Nxa2 {[%clk 0:01:33]} 16. Rxa2 {[%clk 0:02:46.6]} 16... f5 {[%clk
0:01:17.6]} 17. Nd3 {[%clk 0:02:46.1]} 17... Bd6 {[%clk 0:01:11.2]} 18. Nc5
{[%clk 0:02:45.1]} 18... Bxc5 {[%clk 0:01:11.4]} 19. Rxc5 {[%clk 0:02:45.3]}
19... Qd7 {[%clk 0:01:10.8]} 20. Ba5 {[%clk 0:02:44.2]} 20... Rbc8 {[%clk
0:01:07.3]} 21. Rac2 {[%clk 0:02:44.3]} 21... c6 {[%clk 0:01:07.4]} 22. f4
{[%clk 0:02:34.2]} 22... h6 {[%clk 0:01:05.5]} 23. h4 {[%clk 0:02:31.2]} 23...
Kh7 {[%clk 0:01:03.6]} 24. Rc1 {[%clk 0:02:19.3]} 24... Nf6 {[%clk 0:01:01.9]}
25. Qc2 {[%clk 0:02:10]} 25... Nd5 {[%clk 0:00:59.3]} 26. Kh2 {[%clk 0:02:04.2]}
26... Kh8 {[%clk 0:00:59.1]} 27. Bd2 {[%clk 0:01:59.2]} 27... Rfe8 {[%clk
0:00:57]} 28. Qd1 {[%clk 0:01:49.8]} 28... Rg8 {[%clk 0:00:55.1]} 29. R1c2
{[%clk 0:01:44.3]} 29... Rgf8 {[%clk 0:00:52.4]} 30. Qe2 {[%clk 0:01:38.4]}
30... Qe7 {[%clk 0:00:52.5]} 31. Kg1 {[%clk 0:01:34.1]} 31... Qf7 {[%clk
0:00:52.5]} 32. Be1 {[%clk 0:01:30.7]} 32... Rfd8 {[%clk 0:00:52.5]} 33. Bf2
{[%clk 0:01:30.8]} 33... Rd7 {[%clk 0:00:51.8]} 34. e4 {[%clk 0:01:25.2]} 34...
fxe4 {[%clk 0:00:51.3]} 35. Bxe4 {[%clk 0:01:23]} 35... Rdd8 {[%clk 0:00:47.6]}
36. Qf3 {[%clk 0:01:21.6]} 36... Qd7 {[%clk 0:00:44.7]} 37. Kh2 {[%clk
0:01:20.2]} 37... Rc7 {[%clk 0:00:44]} 38. Be1 {[%clk 0:01:19.1]} 38... Rcc8
{[%clk 0:00:43.3]} 39. Ba5 {[%clk 0:01:17.9]} 39... Rf8 {[%clk 0:00:43.2]} 40.
Bd3 {[%clk 0:01:14.8]} 40... Nf6 {[%clk 0:00:42.6]} 41. Bc3 {[%clk 0:01:13]}
41... Qf7 {[%clk 0:00:38.8]} 42. Be1 {[%clk 0:01:09.7]} 42... Qd7 {[%clk
0:00:35.8]} 43. Bf2 {[%clk 0:01:10]} 43... Qe7 {[%clk 0:00:34.9]} 44. Rc1 {[%clk
0:01:08.4]} 44... Rcd8 {[%clk 0:00:34]} 45. Bf1 {[%clk 0:01:02.1]} 45... Rd5
{[%clk 0:00:33.4]} 46. Bh3 {[%clk 0:01:02.1]} 46... Qd6 {[%clk 0:00:31.5]} 47.
Re1 {[%clk 0:01:01.5]} 47... Bc8 {[%clk 0:00:31.1]} 48. Re5 {[%clk 0:00:59.7]}
48... Bd7 {[%clk 0:00:27.4]} 49. Qe3 {[%clk 0:00:55.2]} 49... Re8 {[%clk
0:00:25.8]} 50. b4 {[%clk 0:00:54.2]} 50... Qe7 {[%clk 0:00:22.6]} 51. Rc1
{[%clk 0:00:49.7]} 51... Qxb4 {[%clk 0:00:21]} 52. Re1 {[%clk 0:00:46.3]} 52...
Qd6 {[%clk 0:00:19.7]} 53. Bg2 {[%clk 0:00:39.7]} 53... Ng4+ {[%clk 0:00:19]}
54. Kh3 {[%clk 0:00:39.7]} 54... Nxe3 {[%clk 0:00:18]} 55. Bxe3 {[%clk
0:00:39.9]} 55... Rxe5 {[%clk 0:00:17.1]} 56. dxe5 {[%clk 0:00:40.2]} 56... Qe7
{[%clk 0:00:17.6]} 57. Rc1 {[%clk 0:00:40.1]} 57... a5 {[%clk 0:00:17.9]} 58.
Bc5 {[%clk 0:00:40.6]} 58... Qf7 {[%clk 0:00:18.2]} 59. Rd1 {[%clk 0:00:41]}
59... a4 {[%clk 0:00:16.1]} 60. Kh2 {[%clk 0:00:40.1]} 60... Ra8 {[%clk
0:00:16.1]} 61. Ba3 {[%clk 0:00:39.5]} 61... Be8 {[%clk 0:00:16.3]} 62. Rd6
{[%clk 0:00:37.8]} 62... Qb7 {[%clk 0:00:15.6]} 63. Rxe6 {[%clk 0:00:35.8]}
63... b4 {[%clk 0:00:15.9]} 64. Bb2 {[%clk 0:00:35.9]} 64... a3 {[%clk
0:00:16.1]} 65. Bd4 {[%clk 0:00:35.8]} 65... b3 {[%clk 0:00:15.4]} 66. Bh3
{[%clk 0:00:32.1]} 66... Qb4 {[%clk 0:00:15.1]} 67. Rd6 {[%clk 0:00:31.9]} 67...
b2 {[%clk 0:00:13.7]} 68. e6 {[%clk 0:00:30.9]} 68... Qxd4 {[%clk 0:00:13.7]}
69. Rxd4 {[%clk 0:00:30.9]} 69... b1=Q {[%clk 0:00:14]} 0-1

[Event "*** SCC Grand Prix: Titled Tuesday Blitz"]
[Site "Chess.com"]
[Date "2020.07.14"]
[Round "4"]
[White "Bulldog167"]
[Black "Oleksandr_Bortnyk"]
[Result "1-0"]
[WhiteElo "2728"]
[BlackElo "2926"]
[TimeControl "180+1"]
[EndTime "10:40:19 PDT"]
[Termination "Bulldog167 won on time"]

1. d4 {[%clk 0:03:00.9]} 1... Nf6 {[%clk 0:02:58.8]} 2. c4 {[%clk 0:03:01.1]}
2... e6 {[%clk 0:02:58.7]} 3. Nf3 {[%clk 0:03:01.2]} 3... d5 {[%clk 0:02:57.4]}
4. Nc3 {[%clk 0:03:01.4]} 4... Nc6 {[%clk 0:02:55.7]} 5. cxd5 {[%clk 0:02:56.7]}
5... exd5 {[%clk 0:02:55.6]} 6. Bg5 {[%clk 0:02:56.5]} 6... Bb4 {[%clk
0:02:51.4]} 7. e3 {[%clk 0:02:55.7]} 7... h6 {[%clk 0:02:51.3]} 8. Bxf6 {[%clk
0:02:51.7]} 8... Qxf6 {[%clk 0:02:50.6]} 9. Be2 {[%clk 0:02:52]} 9... O-O {[%clk
0:02:44.5]} 10. O-O {[%clk 0:02:52]} 10... Ne7 {[%clk 0:02:31.9]} 11. a3 {[%clk
0:02:44.3]} 11... Bd6 {[%clk 0:02:28.5]} 12. Nb5 {[%clk 0:02:44.2]} 12... c6
{[%clk 0:02:26.5]} 13. Nxd6 {[%clk 0:02:44.6]} 13... Qxd6 {[%clk 0:02:27.4]} 14.
b4 {[%clk 0:02:44.3]} 14... a6 {[%clk 0:02:21.8]} 15. Qb3 {[%clk 0:02:40.7]}
15... Bg4 {[%clk 0:02:20.3]} 16. a4 {[%clk 0:02:29.2]} 16... f5 {[%clk
0:02:01.9]} 17. Rfe1 {[%clk 0:02:21.8]} 17... Bxf3 {[%clk 0:01:59.9]} 18. Bxf3
{[%clk 0:02:22.2]} 18... g5 {[%clk 0:01:57.7]} 19. b5 {[%clk 0:02:17.5]} 19...
axb5 {[%clk 0:01:57.8]} 20. axb5 {[%clk 0:02:17.8]} 20... Kg7 {[%clk 0:01:56.5]}
21. bxc6 {[%clk 0:02:16.2]} 21... bxc6 {[%clk 0:01:57.4]} 22. Rxa8 {[%clk
0:02:15.4]} 22... Rxa8 {[%clk 0:01:56.8]} 23. g3 {[%clk 0:02:09.9]} 23... Kf6
{[%clk 0:01:54.7]} 24. Rc1 {[%clk 0:01:52.3]} 24... Qa3 {[%clk 0:01:49.3]} 25.
Qxa3 {[%clk 0:01:22.1]} 25... Rxa3 {[%clk 0:01:50.2]} 26. Kg2 {[%clk 0:01:22.6]}
26... f4 {[%clk 0:01:43.5]} 27. e4 {[%clk 0:01:03.8]} 27... Rd3 {[%clk
0:01:41.7]} 28. exd5 {[%clk 0:01:01.5]} 28... cxd5 {[%clk 0:01:40.5]} 29. Ra1
{[%clk 0:00:51.5]} 29... fxg3 {[%clk 0:01:22]} 30. Ra6+ {[%clk 0:00:48.2]} 30...
Kg7 {[%clk 0:00:39.4]} 31. hxg3 {[%clk 0:00:44.7]} 31... Rxd4 {[%clk 0:00:39]}
32. Ra7 {[%clk 0:00:44.7]} 32... Kf6 {[%clk 0:00:39]} 33. Ra6+ {[%clk
0:00:45.2]} 33... Ke5 {[%clk 0:00:37.8]} 34. Rxh6 {[%clk 0:00:43.3]} 34... Rb4
{[%clk 0:00:31.1]} 35. Rh7 {[%clk 0:00:28.2]} 35... Nf5 {[%clk 0:00:29.6]} 36.
Rh5 {[%clk 0:00:23.2]} 36... Rb2 {[%clk 0:00:13]} 37. Rxg5 {[%clk 0:00:21.7]}
37... Kf6 {[%clk 0:00:13.5]} 38. Rg8 {[%clk 0:00:18.3]} 38... d4 {[%clk
0:00:13.3]} 39. Be4 {[%clk 0:00:16.7]} 39... Ne3+ {[%clk 0:00:13.2]} 40. Kf3
{[%clk 0:00:16.9]} 40... Nd1 {[%clk 0:00:13.6]} 41. Kf4 {[%clk 0:00:06.4]} 41...
Rxf2+ {[%clk 0:00:13.1]} 42. Bf3 {[%clk 0:00:07]} 42... Nc3 {[%clk 0:00:13.2]}
43. Rf8+ {[%clk 0:00:05.4]} 43... Ke7 {[%clk 0:00:12.9]} 44. Rf5 {[%clk
0:00:04.8]} 44... d3 {[%clk 0:00:12.6]} 45. Ke3 {[%clk 0:00:05.1]} 45... Rxf3+
{[%clk 0:00:07.6]} 46. Rxf3 {[%clk 0:00:04.7]} 46... Nd5+ {[%clk 0:00:03.9]} 47.
Kxd3 {[%clk 0:00:05.1]} 47... Ke6 {[%clk 0:00:04.6]} 48. Ke4 {[%clk 0:00:05.4]}
48... Ne7 {[%clk 0:00:03.6]} 49. g4 {[%clk 0:00:05.3]} 49... Ng6 {[%clk
0:00:03.5]} 50. Rf1 {[%clk 0:00:05.2]} 50... Ne5 {[%clk 0:00:02.4]} 51. Kf4
{[%clk 0:00:04]} 51... Kf6 {[%clk 0:00:01.6]} 52. g5+ {[%clk 0:00:04.1]} 52...
Kg6 {[%clk 0:00:02.2]} 53. Kxe5 {[%clk 0:00:04.2]} 1-0

[Event "*** SCC Grand Prix: Titled Tuesday Blitz"]
[Site "Chess.com"]
[Date "2020.07.14"]
[Round "4"]
[White "GiantThresher"]
[Black "albano87"]
[Result "0-1"]
[WhiteElo "2474"]
[BlackElo "2466"]
[TimeControl "180+1"]
[EndTime "10:40:19 PDT"]
[Termination "albano87 won by resignation"]

1. e4 {[%clk 0:03:00.9]} 1... c5 {[%clk 0:02:56.9]} 2. Nc3 {[%clk 0:03:00.4]}
2... Nc6 {[%clk 0:02:54.5]} 3. Bb5 {[%clk 0:03:00.2]} 3... Nd4 {[%clk
0:02:49.6]} 4. Nf3 {[%clk 0:02:59.2]} 4... g6 {[%clk 0:02:50]} 5. O-O {[%clk
0:02:57.8]} 5... Bg7 {[%clk 0:02:47.6]} 6. Ba4 {[%clk 0:02:57.5]} 6... b6 {[%clk
0:02:39.7]} 7. Nxd4 {[%clk 0:02:28.2]} 7... cxd4 {[%clk 0:02:40.6]} 8. Ne2
{[%clk 0:02:29.1]} 8... Bb7 {[%clk 0:02:36.2]} 9. d3 {[%clk 0:02:29.6]} 9... e6
{[%clk 0:02:33.2]} 10. Bf4 {[%clk 0:02:26.1]} 10... Ne7 {[%clk 0:02:33.6]} 11.
Bd6 {[%clk 0:02:25.8]} 11... Bc6 {[%clk 0:02:30.1]} 12. c3 {[%clk 0:02:22.2]}
12... dxc3 {[%clk 0:02:25.9]} 13. Nxc3 {[%clk 0:02:21.9]} 13... O-O {[%clk
0:02:19.3]} 14. d4 {[%clk 0:02:19.6]} 14... Re8 {[%clk 0:02:19.5]} 15. Rc1
{[%clk 0:02:15.7]} 15... f5 {[%clk 0:02:16.9]} 16. d5 {[%clk 0:01:57.3]} 16...
Bxa4 {[%clk 0:02:12.6]} 17. Qxa4 {[%clk 0:01:55.8]} 17... fxe4 {[%clk
0:02:12.8]} 18. dxe6 {[%clk 0:01:54.5]} 18... dxe6 {[%clk 0:02:10.2]} 19. Nxe4
{[%clk 0:01:54.2]} 19... Nd5 {[%clk 0:02:08.8]} 20. Ba3 {[%clk 0:01:51]} 20...
Qh4 {[%clk 0:02:04.4]} 21. Rc4 {[%clk 0:01:38.7]} 21... Be5 {[%clk 0:01:56.9]}
22. g3 {[%clk 0:01:28.3]} 22... Qh3 {[%clk 0:01:56.4]} 23. Qd7 {[%clk
0:01:08.3]} 23... Qf5 {[%clk 0:01:49.1]} 24. Nd6 {[%clk 0:01:05.7]} 24... Bxd6
{[%clk 0:01:46.5]} 25. Qxd6 {[%clk 0:01:03.2]} 25... Rad8 {[%clk 0:01:46]} 26.
Qc6 {[%clk 0:01:03.4]} 26... e5 {[%clk 0:01:42.2]} 27. Rcc1 {[%clk 0:00:52]}
27... e4 {[%clk 0:01:39.5]} 28. Qc4 {[%clk 0:00:46.4]} 28... Rc8 {[%clk
0:01:35.7]} 29. Qb3 {[%clk 0:00:41.8]} 29... e3 {[%clk 0:01:32.7]} 30. Rxc8
{[%clk 0:00:37]} 30... Rxc8 {[%clk 0:01:27.9]} 31. fxe3 {[%clk 0:00:36.6]} 31...
Qe4 {[%clk 0:01:26.9]} 32. Rd1 {[%clk 0:00:34.5]} 32... Qxe3+ {[%clk 0:01:26.4]}
33. Qxe3 {[%clk 0:00:34.9]} 33... Nxe3 {[%clk 0:01:25.9]} 34. Rd7 {[%clk
0:00:35.8]} 34... a5 {[%clk 0:01:21.8]} 35. Rd2 {[%clk 0:00:25.5]} 35... Rc1+
{[%clk 0:01:14.2]} 36. Kf2 {[%clk 0:00:25.4]} 36... Nc4 {[%clk 0:01:15.1]} 37.
Rd8+ {[%clk 0:00:18.4]} 37... Kf7 {[%clk 0:01:10.9]} 38. Rd7+ {[%clk 0:00:18.8]}
38... Ke6 {[%clk 0:01:11.5]} 39. Rxh7 {[%clk 0:00:18.5]} 39... Rc2+ {[%clk
0:01:05.9]} 40. Kf3 {[%clk 0:00:18.4]} 40... b5 {[%clk 0:01:06.8]} 41. Bf8
{[%clk 0:00:16.8]} 41... Rxb2 {[%clk 0:01:02.5]} 42. Re7+ {[%clk 0:00:15.6]}
42... Kd5 {[%clk 0:01:02.7]} 43. Rg7 {[%clk 0:00:14.5]} 43... Rxa2 {[%clk
0:00:58.4]} 44. h4 {[%clk 0:00:14.5]} 44... Ne5+ {[%clk 0:00:54.7]} 45. Ke3
{[%clk 0:00:12.3]} 45... b4 {[%clk 0:00:55.6]} 46. Rb7 {[%clk 0:00:12]} 46...
Nc4+ {[%clk 0:00:51.5]} 47. Kf3 {[%clk 0:00:10.6]} 47... Ne5+ {[%clk 0:00:45.7]}
48. Ke3 {[%clk 0:00:10.7]} 48... Kc6 {[%clk 0:00:41]} 49. Re7 {[%clk 0:00:08.3]}
49... Nd7 {[%clk 0:00:41.1]} 50. Re6+ {[%clk 0:00:08.2]} 50... Kb5 {[%clk
0:00:38.9]} 51. Rxg6 {[%clk 0:00:05.1]} 51... Nxf8 {[%clk 0:00:34.9]} 52. Rg8
{[%clk 0:00:04.3]} 52... Nd7 {[%clk 0:00:32.1]} 53. Rb8+ {[%clk 0:00:05.2]} 0-1

[Event "*** SCC Grand Prix: Titled Tuesday Blitz"]
[Site "Chess.com"]
[Date "2020.07.14"]
[Round "4"]
[White "Joshukid"]
[Black "ShahMatKanal"]
[Result "0-1"]
[WhiteElo "2709"]
[BlackElo "2510"]
[TimeControl "180+1"]
[EndTime "10:40:21 PDT"]
[Termination "ShahMatKanal won by checkmate"]

1. Nf3 {[%clk 0:03:00.9]} 1... d5 {[%clk 0:02:59.6]} 2. c4 {[%clk 0:03:01]} 2...
c6 {[%clk 0:02:59.2]} 3. g3 {[%clk 0:03:01.3]} 3... Nf6 {[%clk 0:02:59]} 4. Bg2
{[%clk 0:03:02]} 4... Bg4 {[%clk 0:02:57.7]} 5. O-O {[%clk 0:03:02.6]} 5... e6
{[%clk 0:02:56.3]} 6. b3 {[%clk 0:03:02.9]} 6... Nbd7 {[%clk 0:02:55.9]} 7. Bb2
{[%clk 0:03:03.5]} 7... Be7 {[%clk 0:02:50.8]} 8. d4 {[%clk 0:03:01.2]} 8... O-O
{[%clk 0:02:46.5]} 9. Nc3 {[%clk 0:03:00]} 9... a5 {[%clk 0:02:42.7]} 10. h3
{[%clk 0:02:55.8]} 10... Bf5 {[%clk 0:02:38.9]} 11. Nh4 {[%clk 0:02:51.2]} 11...
Be4 {[%clk 0:02:32.7]} 12. f3 {[%clk 0:02:49.8]} 12... Bg6 {[%clk 0:02:31.2]}
13. Nxg6 {[%clk 0:02:50.2]} 13... hxg6 {[%clk 0:02:31.5]} 14. e4 {[%clk
0:02:50.8]} 14... Nh5 {[%clk 0:02:23.4]} 15. Qe1 {[%clk 0:02:10]} 15... Qc7
{[%clk 0:01:51.6]} 16. cxd5 {[%clk 0:01:52.4]} 16... Nxg3 {[%clk 0:01:41.3]} 17.
Rf2 {[%clk 0:01:29.7]} 17... Bh4 {[%clk 0:01:36.7]} 18. dxc6 {[%clk 0:01:15.3]}
18... bxc6 {[%clk 0:01:34.8]} 19. Rc2 {[%clk 0:01:15.5]} 19... Rac8 {[%clk
0:01:06.8]} 20. Qe3 {[%clk 0:01:12.1]} 20... Nf6 {[%clk 0:01:03]} 21. Rac1
{[%clk 0:01:02.4]} 21... Nfh5 {[%clk 0:01:02.8]} 22. Ba3 {[%clk 0:00:45.3]}
22... Rfd8 {[%clk 0:01:00]} 23. Nb5 {[%clk 0:00:45.6]} 23... Qd7 {[%clk
0:00:47.9]} 24. Nd6 {[%clk 0:00:41.5]} 24... Rc7 {[%clk 0:00:46.8]} 25. d5
{[%clk 0:00:27.5]} 25... c5 {[%clk 0:00:40.7]} 26. Nc4 {[%clk 0:00:22.7]} 26...
exd5 {[%clk 0:00:38.3]} 27. Nb6 {[%clk 0:00:23.2]} 27... d4 {[%clk 0:00:34.2]}
28. Qd2 {[%clk 0:00:16.6]} 28... Qe6 {[%clk 0:00:31.8]} 29. Nd5 {[%clk
0:00:16.9]} 29... Rcd7 {[%clk 0:00:21.4]} 30. Rxc5 {[%clk 0:00:16.3]} 30... f6
{[%clk 0:00:20.5]} 31. Rc6 {[%clk 0:00:15.9]} 31... Qf7 {[%clk 0:00:18.3]} 32.
Rc7 {[%clk 0:00:15.4]} 32... Bg5 {[%clk 0:00:16.3]} 33. f4 {[%clk 0:00:15.2]}
33... Rxc7 {[%clk 0:00:11.9]} 34. Rxc7 {[%clk 0:00:15]} 34... Bxf4 {[%clk
0:00:09.7]} 35. Rxf7 {[%clk 0:00:10]} 35... Bxd2 {[%clk 0:00:09.5]} 36. Ra7
{[%clk 0:00:09.4]} 36... Nf4 {[%clk 0:00:08.4]} 37. Ne7+ {[%clk 0:00:09.2]}
37... Kh7 {[%clk 0:00:08.1]} 38. Nc6 {[%clk 0:00:09.1]} 38... Rc8 {[%clk
0:00:04.4]} 39. e5 {[%clk 0:00:08.7]} 39... fxe5 {[%clk 0:00:02.3]} 40. Kh2
{[%clk 0:00:09.6]} 40... Nfh5 {[%clk 0:00:02]} 41. Ne7 {[%clk 0:00:09]} 41...
Re8 {[%clk 0:00:01.8]} 42. Nd5 {[%clk 0:00:08.6]} 42... Bf4 {[%clk 0:00:02]} 43.
Nxf4 {[%clk 0:00:08.9]} 43... exf4 {[%clk 0:00:02.9]} 44. Bd6 {[%clk 0:00:08.5]}
44... Re2 {[%clk 0:00:02.9]} 45. Kg1 {[%clk 0:00:06.5]} 45... d3 {[%clk
0:00:03.3]} 46. Bf3 {[%clk 0:00:06.9]} 46... d2 {[%clk 0:00:02.9]} 47. Bxe2
{[%clk 0:00:07.2]} 47... Nxe2+ {[%clk 0:00:03.8]} 48. Kf2 {[%clk 0:00:05.4]}
48... d1=Q {[%clk 0:00:04.7]} 49. Be5 {[%clk 0:00:05.9]} 49... Qd2 {[%clk
0:00:04.3]} 50. Kf3 {[%clk 0:00:06.5]} 50... Nd4+ {[%clk 0:00:03.9]} 51. Kg4
{[%clk 0:00:07.4]} 51... Qg2+ {[%clk 0:00:03.5]} 52. Kh4 {[%clk 0:00:07.4]}
52... Qg3# {[%clk 0:00:03.5]} 0-1

[Event "*** SCC Grand Prix: Titled Tuesday Blitz"]
[Site "Chess.com"]
[Date "2020.07.14"]
[Round "4"]
[White "sergeikim"]
[Black "Larina_Marija"]
[Result "1-0"]
[WhiteElo "2373"]
[BlackElo "2105"]
[TimeControl "180+1"]
[EndTime "10:40:22 PDT"]
[Termination "sergeikim won by checkmate"]

1. d4 {[%clk 0:03:00.9]} 1... f5 {[%clk 0:02:59.6]} 2. c4 {[%clk 0:03:00.7]}
2... Nf6 {[%clk 0:02:59.5]} 3. g3 {[%clk 0:03:00.4]} 3... g6 {[%clk 0:02:59.5]}
4. Bg2 {[%clk 0:02:58.9]} 4... Bg7 {[%clk 0:02:59.9]} 5. Nf3 {[%clk 0:02:59]}
5... O-O {[%clk 0:03:00.2]} 6. O-O {[%clk 0:02:59]} 6... d6 {[%clk 0:03:00.3]}
7. Nc3 {[%clk 0:02:58.8]} 7... Nc6 {[%clk 0:02:59.6]} 8. d5 {[%clk 0:02:58.3]}
8... Na5 {[%clk 0:02:59.9]} 9. Qa4 {[%clk 0:02:55.2]} 9... c5 {[%clk 0:02:50.1]}
10. dxc6 {[%clk 0:02:55]} 10... Nxc6 {[%clk 0:02:48.1]} 11. c5 {[%clk
0:02:53.6]} 11... dxc5 {[%clk 0:02:43.1]} 12. Rd1 {[%clk 0:02:47.4]} 12... Qb6
{[%clk 0:02:22.8]} 13. Qc4+ {[%clk 0:02:41.8]} 13... e6 {[%clk 0:02:09.7]} 14.
Be3 {[%clk 0:02:18.4]} 14... Qb4 {[%clk 0:01:46]} 15. Qxc5 {[%clk 0:02:17.1]}
15... Ng4 {[%clk 0:01:27.3]} 16. Qxb4 {[%clk 0:02:13.6]} 16... Nxb4 {[%clk
0:01:28.2]} 17. Bc5 {[%clk 0:02:14]} 17... Nc2 {[%clk 0:01:26.5]} 18. Rac1
{[%clk 0:02:12.8]} 18... Re8 {[%clk 0:01:02.5]} 19. Rxc2 {[%clk 0:02:11.1]}
19... e5 {[%clk 0:01:02.7]} 20. Nd5 {[%clk 0:02:05.4]} 20... b6 {[%clk
0:00:49.2]} 21. Nc7 {[%clk 0:02:03.6]} 21... Bb7 {[%clk 0:00:42.5]} 22. Nxe8
{[%clk 0:02:01]} 22... Rxe8 {[%clk 0:00:41.7]} 23. Ba3 {[%clk 0:01:52.3]} 23...
e4 {[%clk 0:00:41.2]} 24. Ng5 {[%clk 0:01:43.4]} 24... h6 {[%clk 0:00:39.9]} 25.
Nh3 {[%clk 0:01:30.9]} 25... g5 {[%clk 0:00:39.8]} 26. Rd7 {[%clk 0:01:26.3]}
26... Ba8 {[%clk 0:00:26.7]} 27. e3 {[%clk 0:01:16.2]} 27... Ne5 {[%clk
0:00:24.7]} 28. Rxa7 {[%clk 0:01:09]} 28... Rd8 {[%clk 0:00:24.5]} 29. Rc1
{[%clk 0:01:08.8]} 29... Nd3 {[%clk 0:00:22.5]} 30. Rd1 {[%clk 0:01:07.7]} 30...
Rc8 {[%clk 0:00:21.9]} 31. Bf1 {[%clk 0:01:06.2]} 31... Bd5 {[%clk 0:00:19.2]}
32. f4 {[%clk 0:00:56.7]} 32... Bxa2 {[%clk 0:00:16.7]} 33. Nf2 {[%clk 0:00:43]}
33... Bb3 {[%clk 0:00:15.6]} 34. Ra1 {[%clk 0:00:40.3]} 34... Nxb2 {[%clk
0:00:09.8]} 35. Rxg7+ {[%clk 0:00:37.8]} 35... Kxg7 {[%clk 0:00:09.2]} 36. Bxb2+
{[%clk 0:00:37.8]} 36... Kg6 {[%clk 0:00:10.1]} 37. Bd4 {[%clk 0:00:37.6]} 37...
Rc2 {[%clk 0:00:10.1]} 38. Rb1 {[%clk 0:00:35.7]} 38... Bd5 {[%clk 0:00:08.7]}
39. Rxb6+ {[%clk 0:00:34.4]} 39... Kf7 {[%clk 0:00:09.2]} 40. Rf6+ {[%clk
0:00:29.7]} 40... Ke7 {[%clk 0:00:08.8]} 41. Rxf5 {[%clk 0:00:29.6]} 41... g4
{[%clk 0:00:08.7]} 42. Rxd5 {[%clk 0:00:28.7]} 42... Ke6 {[%clk 0:00:08.5]} 43.
Re5+ {[%clk 0:00:27.8]} 43... Kd6 {[%clk 0:00:09]} 44. Nxe4+ {[%clk 0:00:27.1]}
44... Kd7 {[%clk 0:00:08.7]} 45. Bb5+ {[%clk 0:00:25.4]} 45... Kc7 {[%clk
0:00:08.2]} 46. Rc5+ {[%clk 0:00:24.8]} 46... Rxc5 {[%clk 0:00:06.8]} 47. Nxc5
{[%clk 0:00:25.7]} 47... h5 {[%clk 0:00:06.4]} 48. Be2 {[%clk 0:00:26.1]} 48...
h4 {[%clk 0:00:06.3]} 49. Bxg4 {[%clk 0:00:24.8]} 49... hxg3 {[%clk 0:00:06.2]}
50. hxg3 {[%clk 0:00:24.7]} 50... Kc6 {[%clk 0:00:06.7]} 51. Bf3+ {[%clk
0:00:24.3]} 51... Kd6 {[%clk 0:00:06.9]} 52. g4 {[%clk 0:00:24.5]} 52... Ke7
{[%clk 0:00:07.4]} 53. g5 {[%clk 0:00:24.4]} 53... Kf7 {[%clk 0:00:08]} 54. f5
{[%clk 0:00:24.1]} 54... Kg8 {[%clk 0:00:07.6]} 55. g6 {[%clk 0:00:23.5]} 55...
Kf8 {[%clk 0:00:07.6]} 56. f6 {[%clk 0:00:23.3]} 56... Kg8 {[%clk 0:00:08.1]}
57. Bd5+ {[%clk 0:00:23.1]} 57... Kf8 {[%clk 0:00:07.7]} 58. g7+ {[%clk
0:00:21.7]} 58... Ke8 {[%clk 0:00:07.6]} 59. g8=Q# {[%clk 0:00:21.4]} 1-0